[Event "Indian Rapid Championship 2023-24"]
[Site "Nashik"]
[Date "2024.03.04"]
[Round "2.10"]
[White "Sidhant, Mohapatra"]
[Black "Dere Pushkar"]
[Result "1-0"]
[ECO "A11"]
[WhiteElo "2379"]
[BlackElo "2206"]
[Annotator "TA"]
[PlyCount "103"]
[EventDate "2024.03.02"]
[EventType "swiss"]
[EventCountry "IND"]
[SourceTitle "playchess.com"]
[Source "ChessBase"]
[SourceQuality "1"]
[TimeControl "900+10"]

{[%evp 9,103,2,11,15,29,30,29,27,31,0,15,19,23,19,22,12,22,16,11,-17,14,21,4,-10,-5,-22,-19,-58,-26,-25,-29,-35,40,37,52,0,0,0,0,0,0,0,0,-124,0,0,0,0,0,0,0,0,11,8,4,0,12,9,277,286,294,286,304,305,306,314,313,304,295,309,308,293,285,272,368,366,402,415,415,280,604,599,1932,1800,1707,1580,29976,29977,29977,29978,29977,29978,29978,29979,29975,29978]} 1. Nf3 {[%emt 0:00:05]} d5 {[%emt 0:00:02]} 2. e3 {[%emt 0:00:04]} Nf6 {[%emt 0:00:19]} 3. c4 {[%emt 0:00:03]} c6 {[%emt 0:00:02]} 4. Nc3 {[%emt 0:00:06]} Nbd7 {[%emt 0:00:12]} 5. cxd5 {[%emt 0:01:16]} cxd5 {[%emt 0:00:14]} 6. d4 {[%emt 0:00:02]} g6 {[%emt 0:00:27]} 7. Qb3 {[%emt 0:00:12]} e6 {[%emt 0:00:35]} 8. Bd2 {[%emt 0:00:09] Weiß hat minimalen Vorteil.} a6 {[%emt 0:00:53]} 9. a4 {[%emt 0:00:15]} Bg7 {[%emt 0:00:14]} 10. Bd3 {[%emt 0:00:12]} O-O {[%emt 0:00:30]} 11. O-O {[%emt 0:00:02]} b6 {[%emt 0:00:27]} 12. Rfc1 {[%emt 0:00:36]} Bb7 {[%emt 0:00:21]} 13. a5 {[%emt 0:00:06]} b5 {[%emt 0:00:10][%cal Oe6e5]} 14. Na2 {[%emt 0:00:59]} Ne4 {[%emt 0:00:51]} 15. Bb4 {[%emt 0:00:10]} Re8 {[%emt 0:00:09]} 16. Qd1 {[%emt 0:00:25]} e5 {[%emt 0:00:34]} 17. dxe5 {[%emt 0:01:01]} (17. Rc2 $5) 17... Nxe5 {[%emt 0:00:03]} 18. Nxe5 {[%emt 0:00:15]} Bxe5 {[%emt 0:00:01]} 19. Bxe4 {[%emt 0:00:05]} dxe4 {[%emt 0:01:17]} 20. Bc3 {[%emt 0:00:02]} Qh4 {[%emt 0:01:21]} (20... Bc7 $15) 21. Bxe5 $14 {[%emt 0:00:36]} Rxe5 {[%emt 0:00:01]} 22. Rc7 {[%emt 0:00:15]} (22. Qd7 $1 $14 Re7 23. Qd6) 22... Rd8 $11 {[%emt 0:02:04]} 23. Rd7 {[%emt 0:00:10]} Rd5 {[%emt 0:00:28]} 24. Rxd5 {[%emt 0:00:24]} Rxd5 {[%emt 0:00:03]} 25. Qc2 {[%emt 0:00:02]} Qd8 {[%emt 0:01:43]} 26. h3 {[%emt 0:00:09] Weiss ist schwach auf den weissen Feldern} (26. Nb4 $11 Rd2 27. Qc1) 26... Rd2 {[%emt 0:00:26]} (26... Qxa5 $17 27. Qc1 Qd2) 27. Qc3 {[%emt 0:00:01]} Rd3 {[%emt 0:00:34]} 28. Qe5 {[%emt 0:00:27]} Rd5 {[%emt 0:00:12]} 29. Qc3 {[%emt 0:00:07]} Rd3 {[%emt 0:00:01]} 30. Qb4 {[%emt 0:01:09]} Qd6 {[%emt 0:02:51]} 31. Qxd6 {[%emt 0:01:39]} Rxd6 {[%emt 0:00:01][%mdl 4096] Endspiel. KRB-KRN} 32. Nb4 {[%emt 0:00:02]} Rd2 {[%emt 0:00:06]} 33. Rb1 {[%emt 0:00:01]} Bd5 $2 {[%emt 0:00:10][%mdl 8192] Das kostet Schwarz die Partie.} (33... f5 $11 {und Schwarz ist OK.}) 34. Nxa6 $18 {[%emt 0:00:24]} Ba2 {[%emt 0:00:24] [#]} 35. Ra1 {[%emt 0:00:09]} Rxb2 {[%emt 0:00:01] [#]} 36. Nc7 $1 {[%emt 0:00:01] Und a6 würde nun gewinnen.} Rc2 {[%emt 0:01:16][%cal Bb2c2,Bc2c8,Bc8b8][%mdl 32]} 37. Nxb5 {[%emt 0:00:03]} Bd5 {[%emt 0:00:52]} 38. Nd4 {[%emt 0:00:38]} Rc8 {[%emt 0:00:48]} 39. g4 {[%emt 0:00:06][%cal Bg2g4,Bg4g5][%mdl 32]} Kf8 {[%emt 0:00:04]} 40. Kg2 {[%emt 0:00:06]} Ke7 {[%emt 0:00:10]} 41. g5 {[%emt 0:00:05]} f5 {[%emt 0:00:33]} 42. Kg3 {[%emt 0:00:06]} Rb8 {[%emt 0:00:14]} 43. a6 {[%emt 0:00:03][%cal Ba5a6,Ba6a7][%mdl 32]} Kd6 {[%emt 0:00:06]} 44. a7 {[%emt 0:00:01]} Rc8 {[%emt 0:00:18]} (44... Ra8 45. Ra6+ Kc7) 45. Kf4 {[%emt 0:00:02]} Ba8 {[%emt 0:00:02]} 46. Rb1 {[%emt 0:00:15]} Bd5 {[%emt 0:00:27]} 47. Rb8 {[%emt 0:00:08]} Kc7 {[%emt 0:00:09]} 48. Ke5 {[%emt 0:00:05] Weiß setzt Matt.} Ba8 {[%emt 0:00:04]} 49. Ne6+ {[%emt 0:00:09]} Kd7 {[%emt 0:00:06]} 50. Nf8+ {[%emt 0:00:01]} Kc7 {[%emt 0:00:04]} 51. Rxc8+ {[%emt 0:00:02]} Kxc8 {[%emt 0:00:01]} 52. Nxh7 {[%emt 0:00:01] Gewichteter Fehlerwert: Weiß=0.13 (sehr präzise) /Schwarz=0.53.  Verlustzug:     	---       	Schwarz=1     Fehler:       	Weiß=2     	Schwarz=3     Ungenau:       	Weiß=4     	Schwarz=4     OK:         	Weiß=19    	Schwarz=12    Bester:       	Weiß=3     	Schwarz=2     Stark:        	Weiß=1     	---} 1-0

[Event "Indian Rapid Championship 2023-24"]
[Site "Nashik"]
[Date "2024.03.04"]
[Round "3.1"]
[White "Ghosh, Diptayan"]
[Black "Srihari L"]
[Result "1-0"]
[ECO "A49"]
[WhiteElo "2559"]
[BlackElo "2400"]
[Annotator "TA"]
[PlyCount "139"]
[EventDate "2024.03.02"]
[EventType "swiss"]
[EventCountry "IND"]
[SourceTitle "playchess.com"]
[Source "ChessBase"]
[SourceQuality "1"]
[TimeControl "900+10"]

{[%evp 51,139,15,14,13,15,0,0,0,0,0,0,0,0,-6,8,-8,-6,-25,0,0,20,0,0,0,285,278,277,262,285,298,257,303,323,327,324,324,330,330,386,301,289,244,254,0,212,203,555,568,526,530,316,560,756,761,1080,1081,900,754,819,755,743,723,1596,1005,1268,1261,1722,1619,1546,1499,4137,4133,29968,9921,29973,29974,29977,29978,29978,29978,29979,29980,29981,29982,29982,29981,29981,29981,29979,29980]} 1. Nf3 {[%emt 0:00:03]} Nf6 {[%emt 0:00:01]} 2. g3 {[%emt 0:00:01]} g6 {[%emt 0:00:01]} 3. Bg2 {[%emt 0:00:01]} Bg7 {[%emt 0:00:03]} 4. d4 {[%emt 0:00:04]} O-O {[%emt 0:00:03]} 5. O-O {[%emt 0:00:02]} d6 {[%emt 0:00:01]} 6. Re1 {[%emt 0:00:01]} a5 {[%emt 0:00:47] A49: 1 d4 Nf6 2 Nf3 g6 3 g3: Anti-King's Indian systems.} 7. e4 {[%emt 0:00:27]} c6 {[%emt 0:00:26]} 8. Nc3 {[%emt 0:00:29]} Na6 $146 {[%emt 0:00:19]} ({Predecessor:} 8... a4 9. e5 Nd5 10. Nxd5 cxd5 11. Bg5 Re8 12. Qd2 Nc6 13. c3 Be6 14. h4 h5 15. Bh6 {1-0 Bellahcene,B (2493)-Oney,F (2111) Europe Echecs online op March blitz 2020 (9)}) 9. h3 {[%emt 0:03:06]} Nd7 {[%emt 0:00:44]} 10. e5 {[%emt 0:00:20]} dxe5 {[%emt 0:00:37]} 11. dxe5 {[%emt 0:00:02]} Ndc5 {[%emt 0:00:09]} 12. Qe2 {[%emt 0:00:38]} b5 {[%emt 0:02:19]} 13. Rd1 {[%emt 0:01:37]} Qc7 {[%emt 0:00:20]} 14. a3 {[%emt 0:00:27]} Bb7 {[%emt 0:00:53]} 15. Be3 {[%emt 0:01:57]} Rfd8 {[%emt 0:01:15]} 16. h4 {[%emt 0:01:39]} Rxd1+ {[%emt 0:01:59]} 17. Rxd1 {[%emt 0:00:02]} b4 {[%emt 0:00:33]} 18. Nb1 {[%emt 0:00:15]} Ne6 {[%emt 0:00:49]} 19. Nbd2 {[%emt 0:00:13]} Nac5 {[%emt 0:00:22]} 20. axb4 {[%emt 0:01:03]} axb4 {[%emt 0:00:27]} 21. Qc4 {[%emt 0:00:35]} Nd7 {[%emt 0:00:44]} 22. Qxb4 {[%emt 0:00:47]} c5 {[%emt 0:00:09]} 23. Qc4 {[%emt 0:01:31]} Nxe5 {[%emt 0:01:36]} 24. Nxe5 {[%emt 0:00:02]} Bxe5 {[%emt 0:00:59]} 25. c3 {[%emt 0:00:13]} Rd8 {[%emt 0:00:48]} 26. Bxb7 {[%emt 0:00:13]} Qxb7 {[%emt 0:00:01]} 27. Rb1 {[%emt 0:00:01]} Qc7 {[%emt 0:00:41]} 28. Kg2 {[%emt 0:00:18]} Ng7 {[%emt 0:00:22]} 29. Nf3 {[%emt 0:00:52]} (29. Qxc5 $2 Qxc5 30. Bxc5 Rxd2 $19) 29... Nf5 {[%emt 0:00:08]} 30. Qxc5 {[%emt 0:01:05]} Bxg3 $1 {[%emt 0:00:27]} 31. Qxc7 {[%emt 0:00:01]} Bxc7 {[%emt 0:00:02]} 32. Bc5 {[%emt 0:00:15]} e5 {[%emt 0:00:16]} 33. Re1 {[%emt 0:00:02]} f6 {[%emt 0:00:13]} 34. h5 {[%emt 0:00:51]} g5 {[%emt 0:00:12]} 35. Ra1 {[%emt 0:00:15]} Bb8 {[%emt 0:01:58]} 36. b4 {[%emt 0:00:22]} Kf7 {[%emt 0:00:03]} 37. Ra8 {[%emt 0:00:11]} Ke6 $2 {[%emt 0:00:12][%mdl 8192] [#]} (37... Ng7 $11 {and Black has nothing to worry.}) 38. Bb6 $1 $18 {[%emt 0:00:20]} Rc8 {[%emt 0:00:15] [#]} 39. Ba7 $1 {[%emt 0:00:17]} Rxc3 {[%emt 0:00:02]} 40. Rxb8 {[%emt 0:00:09]} ({Don't play} 40. Bxb8 Rc2 41. Ra6+ Ke7) 40... g4 {[%emt 0:00:03]} 41. Nd2 {[%emt 0:00:03]} Nh4+ {[%emt 0:00:04]} 42. Kf1 {[%emt 0:00:02]} Rc1+ {[%emt 0:00:21]} 43. Ke2 {[%emt 0:00:01]} Ng2 {[%emt 0:00:01]} 44. Be3 {[%emt 0:00:48]} f5 {[%emt 0:00:16]} 45. Rb6+ {[%emt 0:00:01]} Kd5 {[%emt 0:00:11]} 46. Rb5+ {[%emt 0:00:06]} Ke6 {[%emt 0:00:15]} 47. Rb6+ {[%emt 0:00:33]} Kd5 {[%emt 0:00:04]} 48. Bh6 {[%emt 0:00:26]} e4 $2 {[%emt 0:00:24]} (48... Rh1 {is more resistant.} 49. Rb5+ Ke6) 49. Rb5+ $18 {[%emt 0:00:11]} Ke6 {[%emt 0:00:04]} 50. Nb3 {[%emt 0:00:13]} Re1+ {[%emt 0:00:18]} 51. Kd2 {[%emt 0:00:01]} f4 {[%emt 0:00:01]} 52. Bxf4 {[%emt 0:00:11]} Rf1 {[%emt 0:00:09]} 53. Nd4+ {[%emt 0:00:11]} Kd7 {[%emt 0:00:02]} 54. Be3 {[%emt 0:00:03]} Rb1 {[%emt 0:00:16]} 55. Rd5+ {[%emt 0:00:04]} Kc7 {[%emt 0:00:00]} 56. b5 {[%emt 0:00:07]} Ne1 {[%emt 0:00:11]} 57. Rc5+ {[%emt 0:00:10]} Kd6 {[%emt 0:00:04]} 58. Rc1 {[%emt 0:00:07]} Rxc1 {[%emt 0:00:05]} 59. Kxc1 {[%emt 0:00:01]} Nd3+ {[%emt 0:00:03]} 60. Kd2 {[%emt 0:00:01]} Kc5 {[%emt 0:00:02]} 61. h6 {[%emt 0:00:10]} Nb2 {[%emt 0:00:10]} 62. Ke2 {[%emt 0:00:21]} (62. Ne6+ $142 Kxb5 63. Ng5 Nc4+ 64. Ke2 Ne5 65. Nxh7 Kc6 66. Nf6 Ng6 67. h7 (67. Nxg4 Kd6 $18) (67. Nxe4 Kd5 $18)) 62... Nc4 {[%emt 0:00:04]} 63. Ne6+ {[%emt 0:00:19]} Kxb5 {[%emt 0:00:02]} 64. Nf8 {[%emt 0:00:01]} Ne5 {[%emt 0:00:31]} 65. Nxh7 {[%emt 0:00:04]} Kc6 {[%emt 0:00:03]} 66. Nf6 {[%emt 0:00:02]} Ng6 {[%emt 0:00:02]} 67. Nxg4 {[%emt 0:00:15]} Kd5 {[%emt 0:00:01]} 68. Bc1 {[%emt 0:00:18]} Ke6 {[%emt 0:00:04]} 69. Bb2 {[%emt 0:00:02]} Kf5 {[%emt 0:00:07]} 70. Ne3+ {[%emt 0:00:04]} 1-0

[Event "Indian Rapid Championship 2023-24"]
[Site "Nashik"]
[Date "2024.03.04"]
[Round "3.2"]
[White "Aakash Sharadchandra, Dalvi"]
[Black "Aronyak Ghosh"]
[Result "0-1"]
[ECO "E15"]
[WhiteElo "2291"]
[BlackElo "2517"]
[Annotator "TA"]
[PlyCount "62"]
[EventDate "2024.03.02"]
[EventType "swiss"]
[EventCountry "IND"]
[SourceTitle "playchess.com"]
[Source "ChessBase"]
[SourceQuality "1"]
[TimeControl "900+10"]

{[%evp 17,62,9,12,-8,6,10,14,9,2,0,12,-8,8,0,0,-27,-16,-20,-11,-8,-6,-14,-18,-19,-12,-48,-50,-173,-175,-174,-176,-180,-193,-267,-236,-454,-454,-577,-597,-602,-616,-618,-601,-663,-450,-655,-633]} 1. d4 {[%emt 0:00:02]} Nf6 {[%emt 0:00:06]} 2. c4 {[%emt 0:00:02]} e6 {[%emt 0:00:11]} 3. Nf3 {[%emt 0:00:03]} b6 {[%emt 0:00:09]} 4. g3 {[%emt 0:00:03]} Ba6 {[%emt 0:00:16]} 5. b3 {[%emt 0:00:02]} Bb4+ {[%emt 0:00:07]} 6. Bd2 {[%emt 0:00:02]} c5 {[%emt 0:00:02]} 7. Bg2 {[%emt 0:01:00]} Bb7 {[%emt 0:00:03]} 8. O-O {[%emt 0:00:48]} O-O {[%emt 0:00:05]} 9. Bc3 {[%emt 0:01:02]} d5 {[%emt 0:01:10]} 10. Ne5 {[%emt 0:02:24]} Qe7 {[%emt 0:02:45]} 11. Bxb4 {[%emt 0:01:38]} cxb4 {[%emt 0:00:02]} 12. Nd2 {[%emt 0:01:06] The position is equal.} Nbd7 {[%emt 0:01:31]} 13. Nd3 {[%emt 0:00:25]} a5 {[%emt 0:00:56]} 14. e3 {[%emt 0:00:55]} Rfd8 {[%emt 0:00:19]} 15. Rc1 {[%emt 0:00:19]} Rac8 {[%emt 0:00:14]} 16. Qe2 {[%emt 0:00:36]} Ba6 {[%emt 0:01:02]} 17. f4 {[%emt 0:02:31]} Rc7 {[%emt 0:01:26]} 18. Rc2 {[%emt 0:01:00]} Ne8 {[%emt 0:01:02]} 19. Rfc1 {[%emt 0:00:34]} Ndf6 {[%emt 0:00:18]} 20. Ne5 {[%emt 0:00:55]} Nd6 {[%emt 0:00:57]} 21. Qd1 {[%emt 0:00:48]} Rdc8 {[%emt 0:00:45]} 22. cxd5 {[%emt 0:01:28] This move loses the game for White.} ({White should play} 22. g4 $15) 22... Nxd5 $19 {[%emt 0:00:33]} ({Resist} 22... exd5 23. g4 $17) 23. Bxd5 {[%emt 0:00:14]} exd5 {[%emt 0:00:02]} 24. Rxc7 {[%emt 0:00:15]} Rxc7 {[%emt 0:00:02]} 25. Kf2 {[%emt 0:00:12]} (25. Rxc7 $142 Qxc7 26. Nb1) 25... f6 {[%emt 0:00:48] ...Rc3 would now be deadly.} 26. Nef3 $2 {[%emt 0:00:02]} (26. Rxc7 Qxc7 27. Nef3) 26... Rc3 {[%emt 0:00:18] Black is clearly winning.} 27. Rxc3 {[%emt 0:00:39]} bxc3 {[%emt 0:00:02]} 28. Nb1 {[%emt 0:00:01] White is weak on the light squares} Nf5 {[%emt 0:01:07]} 29. Qc1 {[%emt 0:00:14] [#]} c2 {[%emt 0:00:08][%mdl 512]} 30. Qxc2 {[%emt 0:00:09]} (30. Na3 Qxe3+) 30... Qxe3+ {[%emt 0:00:02]} 31. Kg2 {[%emt 0:00:04] [#]} Qxf3+ $3 {[%emt 0:00:07][%mdl 512] Weighted Error Value: White=0.44/Black=0.05 (flawless) .  Mistake:       	White=3     	---        Inaccurate:     	White=2     	---        OK:         	White=5     	Black=7      Best:        	---       	Black=1} 0-1

[Event "Indian Rapid Championship 2023-24"]
[Site "Nashik"]
[Date "2024.03.04"]
[Round "3.3"]
[White "Prraneeth Vuppala"]
[Black "Kaustuv, Kundu"]
[Result "1/2-1/2"]
[ECO "E70"]
[WhiteElo "2506"]
[BlackElo "2388"]
[Annotator "TA"]
[PlyCount "86"]
[EventDate "2024.03.02"]
[EventType "swiss"]
[EventCountry "IND"]
[SourceTitle "playchess.com"]
[Source "ChessBase"]
[SourceQuality "1"]
[TimeControl "900+10"]

{[%evp 15,86,64,46,67,59,45,52,44,82,81,83,63,86,63,63,10,56,34,86,107,164,157,157,126,133,143,127,69,136,130,172,168,320,305,321,237,227,190,297,316,308,268,217,218,265,120,267,235,257,216,250,211,265,265,370,166,158,167,122,0,0,0,0,0,0,-449,0,0,0,-465,0,0,0]} 1. d4 {[%emt 0:02:46]} Nf6 {[%emt 0:02:55]} 2. c4 {[%emt 0:00:00]} g6 {[%emt 0:00:02]} 3. Nc3 {[%emt 0:00:00]} Bg7 {[%emt 0:00:02]} 4. e4 {[%emt 0:00:00]} d6 {[%emt 0:00:02]} 5. Nge2 {[%emt 0:00:00]} O-O {[%emt 0:00:26]} 6. Ng3 {[%emt 0:00:00]} Nc6 {[%emt 0:00:05]} 7. d5 {[%emt 0:00:00]} Ne5 {[%emt 0:00:07]} 8. Be2 {[%emt 0:00:00]} c6 {[%emt 0:00:18]} 9. f4 {[%emt 0:00:00]} Ned7 {[%emt 0:00:03]} 10. Be3 {[%emt 0:00:00]} cxd5 {[%emt 0:00:24]} 11. cxd5 {[%emt 0:00:00] White is slightly better.} h5 {[%emt 0:01:10]} 12. O-O {[%emt 0:00:18]} b6 {[%emt 0:00:28]} 13. Rc1 {[%emt 0:01:03]} Bb7 {[%emt 0:00:56]} 14. h3 {[%emt 0:00:31]} Rc8 {[%emt 0:00:06]} 15. Bd4 {[%emt 0:01:28]} (15. Bd3 $14) 15... h4 {[%emt 0:03:40]} (15... e6 $11 {was preferrable.}) 16. Nh1 $14 {[%emt 0:00:07]} Nc5 {[%emt 0:00:10]} ({Black should try} 16... e5 $14 17. dxe6 fxe6) 17. Nf2 $16 {[%emt 0:00:17]} e5 {[%emt 0:00:08]} 18. fxe5 $18 {[%emt 0:01:13]} dxe5 {[%emt 0:00:05]} 19. Be3 {[%emt 0:00:18]} Ne8 {[%emt 0:00:48]} 20. b4 {[%emt 0:01:46]} Nd7 {[%emt 0:00:09]} 21. Qd2 {[%emt 0:00:51]} (21. Nb5 $16) 21... Nd6 {[%emt 0:00:54]} (21... f5 $1 $14) 22. Nb5 $36 {[%emt 0:00:34][%mdl 2048] Black is under strong pressure.} Nxb5 {[%emt 0:03:57]} 23. Bxb5 {[%emt 0:00:03]} a6 $2 {[%emt 0:00:59]} (23... Nf6 24. Rxc8 Bxc8) 24. Bc6 $18 {[%emt 0:00:40]} Bxc6 {[%emt 0:00:16]} 25. dxc6 {[%emt 0:00:05]} Nf6 {[%emt 0:00:06]} 26. Qe2 {[%emt 0:01:33]} b5 {[%emt 0:00:16] [#]} (26... Qd6 {was necessary.} 27. Rfd1 (27. Bxb6 Rxc6 28. Be3 Rfc8 $11) 27... Qe6) 27. a4 $1 {[%emt 0:00:09][%mdl 512]} Nh5 {[%emt 0:00:39]} 28. Rfd1 {[%emt 0:02:39]} Ng3 {[%emt 0:00:01]} 29. Qc2 {[%emt 0:01:06]} Qf6 {[%emt 0:00:13]} 30. Nh1 {[%emt 0:00:30]} (30. axb5 $18 {and White stays clearly on top.} axb5 31. Rd5) 30... Nh5 {[%emt 0:00:16] [#]} (30... Rfd8 $16) 31. axb5 $1 {[%emt 0:00:08]} axb5 {[%emt 0:00:01]} 32. Qc5 {[%emt 0:00:16]} Nf4 {[%emt 0:00:03][%cal Bh5f4,Bf4e6,Be6d4][%mdl 32]} 33. Qxb5 {[%emt 0:00:16] Nf2 would now be deadly.} Bh6 {[%emt 0:00:16][%cal Of4h3] Threatens to win with ...Nxh3+!} 34. Kh2 {[%emt 0:01:08]} Kh7 {[%emt 0:00:32]} 35. c7 {[%emt 0:00:38]} (35. Rf1 $142) 35... Ne6 {[%emt 0:00:03]} 36. Bxh6 {[%emt 0:00:04]} Kxh6 {[%emt 0:00:01] [#]} 37. Qb6 {[%emt 0:00:06] White is much more active.} (37. Rf1 $1 $16 {[%cal Rf1f6]} Qe7 (37... Nxc7 $2 38. Rxc7 $18) 38. Nf2 (38. Qxe5 Rxc7 39. b5 Rc5 $11) 38... Rxc7 39. Ng4+ (39. Qxe5 Rxc1 40. Rxc1 Qxb4 $11) 39... Kh7 40. Rxc7 (40. Nxe5 Rxc1 41. Rxc1 Qg5 $11) 40... Qxc7 41. Qxe5 (41. Nxe5 Kg7 $16) 41... Qxe5+ 42. Nxe5) 37... Qf4+ $11 {[%emt 0:00:10]} 38. Kg1 {[%emt 0:00:02] aiming for Nf2.} Nd4 $1 {[%emt 0:00:02]} 39. Qa6 {[%emt 0:00:16] Dodges Ne2+. Dancing on a razor blade.} (39. Re1 Ne2+ 40. Rxe2 Qxc1+ 41. Kh2 Rxc7 $19) 39... Qe3+ {[%emt 0:00:04]} 40. Kh2 $2 {[%emt 0:00:37][%mdl 8192]} (40. Nf2 $1 $11 {and White is okay.} Ne2+ 41. Kf1 Ng3+ 42. Kg1 Ne2+ 43. Kf1 Ng3+ 44. Kg1 Ne2+) 40... Qf4+ {[%emt 0:00:02]} 41. Kg1 {[%emt 0:00:01]} Qe3+ {[%emt 0:00:09]} 42. Kh2 {[%emt 0:00:20] Rf1 is the strong threat.} Qf4+ {[%emt 0:00:01]} (42... Ne2 $1 $19 {Hoping for ...Qf4+.} 43. Rf1 (43. Qf6 $2 Nxc1 44. Nf2 Qg3+ 45. Kh1 Rxc7 $19) 43... Nxc1) 43. Kg1 {[%emt 0:00:02] Black must now prevent Nf2.} Qe3+ {[%emt 0:00:02] Weighted Error Value: White=0.48/Black=0.79.  Loses game:     	White=1     	---        Missed win:     	---       	Black=1      Mistake:       	White=5     	Black=7      Inaccurate:     	---       	Black=3      OK:         	White=11    	Black=9      Best:        	White=7     	Black=4      Strong:       	White=1     	Black=1} 1/2-1/2

[Event "Indian Rapid Championship 2023-24"]
[Site "Nashik"]
[Date "2024.03.04"]
[Round "3.4"]
[White "Kiran, Manisha Mohanty"]
[Black "Raja Rithvik R"]
[Result "0-1"]
[ECO "B95"]
[WhiteElo "2036"]
[BlackElo "2532"]
[Annotator "TA"]
[PlyCount "60"]
[EventDate "2024.03.02"]
[EventType "swiss"]
[EventCountry "IND"]
[SourceTitle "playchess.com"]
[Source "ChessBase"]
[SourceQuality "1"]
[TimeControl "900+10"]

{[%evp 12,60,14,0,0,0,0,0,71,40,50,53,45,0,0,0,0,0,11,-103,-106,-114,-88,-136,-110,32767,-17,-9,-32,-35,0,-20,0,-59,19,-57,-57,-64,-48,-116,-110,-112,-125,-117,-95,-411,-408,-373,-304,-29976,-29977]} 1. e4 {[%emt 0:00:05]} c5 {[%emt 0:00:23]} 2. Nf3 {[%emt 0:00:07]} d6 {[%emt 0:01:26]} 3. d4 {[%emt 0:00:07]} cxd4 {[%emt 0:00:03]} 4. Nxd4 {[%emt 0:00:03]} Nf6 {[%emt 0:00:02]} 5. Nc3 {[%emt 0:00:01]} a6 {[%emt 0:00:00]} 6. Bg5 {[%emt 0:00:03]} e6 {[%emt 0:00:17]} 7. Qe2 {[%emt 0:00:03]} h6 {[%emt 0:00:08]} 8. Bh4 {[%emt 0:00:18]} Be7 {[%emt 0:00:11][%cal Of6e4]} 9. O-O-O {[%emt 0:01:03]} Nbd7 {[%emt 0:03:08]} (9... Nxe4 $11 {remains equal.} 10. Nxe4 Bxh4) 10. Kb1 {[%emt 0:00:18]} Qc7 {[%emt 0:00:07]} 11. f4 {[%emt 0:00:07]} b5 {[%emt 0:00:15]} 12. a3 {[%emt 0:00:01][%cal Oe4e5]} Bb7 {[%emt 0:00:05]} 13. g4 {[%emt 0:00:20]} Rc8 {[%emt 0:01:04][%cal Of6e4]} ({Don't play} 13... Nxe4 $6 14. Nxe4 Bxh4 15. Nxe6 fxe6 16. Nxd6+ Ke7 17. Rg1 $16 (17. Bg2 Bxg2 18. Nf5+ Kf7 $17)) 14. Bg2 {[%emt 0:00:03]} Qc4 {[%emt 0:00:55]} 15. Qxc4 {[%emt 0:01:11]} (15. h3 $11 {keeps the balance.}) 15... Rxc4 $17 {[%emt 0:00:03]} 16. h3 {[%emt 0:00:01]} Rxc3 {[%emt 0:02:03]} 17. Bxf6 {[%emt 0:00:17]} (17. bxc3 $142 g5 (17... Bxe4 18. Bxe4 Nxe4 19. Be1 $17) 18. Be1) 17... Nxf6 {[%emt 0:00:35]} 18. bxc3 {[%emt 0:00:18]} Nxe4 {[%emt 0:00:01]} 19. Bxe4 {[%emt 0:00:06]} Bxe4 {[%emt 0:00:02]} 20. Rhe1 {[%emt 0:00:02]} d5 {[%emt 0:00:50][%mdl 1024] Black has compensation.} 21. Kb2 {[%emt 0:00:02]} h5 {[%emt 0:01:08]} 22. g5 {[%emt 0:00:03]} (22. f5 $11) 22... g6 {[%emt 0:00:15]} ({Black should try} 22... O-O $1 $15) 23. h4 {[%emt 0:01:11]} (23. Nc6 $11) 23... O-O $15 {[%emt 0:01:22]} 24. Nc6 {[%emt 0:00:09]} Bc5 {[%emt 0:00:01]} 25. Nd4 {[%emt 0:00:34]} (25. Ne5 $15) 25... Rc8 {[%emt 0:00:06]} 26. Rd2 {[%emt 0:00:11]} Bb6 {[%emt 0:00:12][%cal Oc8c3] This pair of bishops is nice.} 27. Rde2 {[%emt 0:00:43]} Rc4 {[%emt 0:00:16]} 28. Rxe4 $4 {[%emt 0:02:36][%mdl 8192]} (28. Rf1 $17 {is tougher.}) 28... dxe4 $19 {[%emt 0:00:02]} 29. Rxe4 {[%emt 0:00:02]} Ra4 {[%emt 0:00:53]} 30. Nxe6 $2 {[%emt 0:00:42] [#]} (30. Kc1 $19) 30... Rxe4 {[%emt 0:00:13] Weighted Error Value: White=0.73/Black=0.20 (precise) .  Loses game:     	White=1     	---        Mistake:       	White=6     	Black=2      Inaccurate:     	White=2     	Black=1      OK:         	White=8     	Black=6      Best:        	White=1     	Black=2} 0-1